bitfinex-derivatives/quotes_SOLF0:USTF0_20260202
["timestamp","ask_amount","ask_price","bid_price","bid_amount"]
[1770010097913,142.7238,98.205,98.111,23.41280358]
[1770010098209,142.6959,98.224,98.124,142.8396]
[1770010098415,142.7097,98.215,98.125,23.41280358]
[1770010098709,21.47682936,98.24,98.142,142.8132]
[1770010098914,142.6752,98.238,98.145,23.41280358]
[1770010099116,21.47682936,98.24,98.147,142.8068]
[1770010099315,142.6461,98.258,98.161,142.7867]
[1770010099511,406.02,98.259,98.064,23.41280358]
[1770010099512,142.7859,98.162,98.064,23.41280358]
[1770010099910,142.7367,98.196,98.101,142.8732]
[1770010100111,142.6893,98.229,98.126,142.8377]
[1770010100416,427.5459,98.349,98.198,142.7329]
[1770010100417,142.5932,98.295,98.198,142.7329]
[1770010100719,142.6093,98.284,98.181,23.41862596]
[1770010100921,142.6276,98.271,98.161,406.12]
[1770010101213,142.639,98.263,98.179,23.41862596]
[1770010101513,142.6543,98.253,98.179,23.41862596]
[1770010101719,142.6825,98.233,98.145,23.41862596]
[1770010101912,142.6971,98.223,98.145,23.41862596]
[1770010102108,164.13522936,98.25,98.155,23.46315058]
[1770010102313,142.6463,98.258,98.162,166.24715058]
[1770010102612,142.6942,98.225,98.132,23.46315058]
[1770010103014,142.6994,98.222,98.132,23.46315058]
[1770010103211,142.6802,98.235,98.142,142.8133]
[1770010103410,142.6603,98.249,98.152,142.7993]
[1770010103615,142.634,98.267,98.168,142.7766]
[1770010103815,142.634,98.267,98.169,23.46315058]
[1770010104016,142.634,98.267,98.172,142.7696]
[1770010104410,142.6472,98.258,98.169,23.46315058]
[1770010104614,9.1683,98.277,98.183,23.49039]
[1770010104917,21.47682936,98.28,98.183,23.49039]
[1770010104918,142.6177,98.278,98.187,142.7489]
[1770010105118,142.6177,98.278,98.183,23.49039]
[1770010105420,142.5943,98.294,98.202,23.49039]
[1770010105817,9.1646,98.317,98.22,142.6999]
[1770010106018,21.47682936,98.34,98.241,23.50148728]
[1770010106221,142.5271,98.34,98.247,142.6608]
[1770010106512,142.4945,98.363,98.248,142.6595]
[1770010106714,142.5068,98.354,98.261,142.6405]
[1770010107015,548.725,98.369,98.275,166.12218728]
[1770010107215,142.4993,98.36,98.275,23.50148728]
[1770010107817,142.5157,98.348,98.252,142.6543]
[1770010108018,142.5157,98.348,98.247,23.50148728]
[1770010108019,142.5335,98.336,98.247,23.50148728]
[1770010108214,142.5595,98.318,98.247,23.50148728]
[1770010108410,142.5492,98.325,98.22,23.51696203]
[1770010108411,142.5736,98.308,98.22,23.51696203]
[1770010109120,9.1654,98.308,98.22,23.51696203]
[1770010109321,21.47682936,98.32,98.228,142.6891]
[1770010109723,142.5691,98.311,98.222,23.51696203]
[1770010109913,142.5581,98.319,98.227,142.6895]
[1770010110118,142.5795,98.304,98.222,23.51696203]
[1770010110318,142.6,98.29,98.195,142.7364]
[1770010110513,142.6,98.29,98.187,142.7488]
[1770010110514,142.5721,98.309,98.21,142.7155]
[1770010110717,142.5721,98.309,98.198,142.7323]
[1770010110718,142.579,98.305,98.206,142.721]
[1770010110917,52.01682936,98.32,98.214,142.7093]
[1770010111119,9.1651,98.312,98.225,151.8666]
[1770010111420,142.547,98.327,98.237,23.52225482]
[1770010111722,163.99032936,98.35,98.26,142.6426]
[1770010112020,427.5416,98.35,98.201,23.53198712]
[1770010112225,142.6077,98.285,98.201,23.53198712]
[1770010112425,142.5981,98.291,98.201,23.53198712]
[1770010112718,142.6022,98.289,98.201,23.53198712]
[1770010113113,142.6265,98.272,98.201,23.53198712]
[1770010113419,142.5972,98.292,98.201,23.53198712]
[1770010113723,142.6063,98.286,98.201,23.53198712]
[1770010113921,9.1675,98.286,98.201,23.53198712]
[1770010114123,142.5827,98.302,98.201,23.53198712]
[1770010114318,142.6039,98.287,98.185,23.40228465]
[1770010114623,142.6039,98.287,98.192,23.40228465]
[1770010114919,142.5573,98.32,98.22,23.40228465]
[1770010115133,9.1646,98.317,98.228,142.6889]
[1770010115326,9.1646,98.317,98.228,23.40228465]
[1770010115624,142.5769,98.306,98.228,23.40228465]
[1770010115823,142.5484,98.326,98.228,23.40228465]
[1770010116222,9.1644,98.319,98.229,23.39981361]
[1770010116523,142.5691,98.311,98.229,23.39981361]
[1770010116719,151.7556,98.298,98.229,23.39981361]
[1770010116921,30.54,98.308,98.2,23.39981361]
[1770010117124,142.5966,98.292,98.2,23.39981361]
[1770010117318,9.168,98.281,98.2,23.39981361]
[1770010118124,142.5966,98.292,98.2,23.39981361]
[1770010118520,9.1681,98.279,98.188,23.40726802]
[1770010118922,30.54,98.295,98.195,142.7368]
[1770010119125,9.1671,98.29,98.195,151.9127]
[1770010120124,9.1671,98.29,98.195,175.33289616]
[1770010120324,151.7674,98.29,98.195,175.33289616]
[1770010121023,9.1657,98.305,98.207,23.42019616]
[1770010121228,142.5846,98.301,98.207,23.42019616]
[1770010121828,142.5871,98.299,98.214,23.42019616]
[1770010122422,8.62257427,98.28,98.214,23.42019616]
[1770010123218,8.62257427,98.26,98.16,23.38068547]
[1770010123418,142.6398,98.263,98.16,23.38068547]
[1770010123419,8.62257427,98.24,98.16,23.38068547]
[1770010123624,9.1718,98.239,98.16,23.38068547]
[1770010124325,8.62257427,98.22,98.135,23.38667123]
[1770010124523,8.62257427,98.22,98.138,23.38667123]
[1770010124728,142.6286,98.27,98.08,8.62257427]
[1770010124729,8.62257427,98.26,98.18,142.7588]
[1770010124920,8.62257427,98.26,98.173,23.38667123]
[1770010125125,8.62257427,98.26,98.176,23.38667123]
[1770010125326,142.6587,98.25,98.176,23.38667123]
[1770010125521,142.6738,98.239,98.151,23.38667123]
[1770010125824,8.62257427,98.24,98.151,23.38667123]
[1770010126128,9.1719,98.239,98.155,23.38686343]
[1770010126925,406.26,98.258,98.172,23.38689568]
[1770010127122,142.6485,98.257,98.172,23.38689568]
[1770010127322,142.6753,98.238,98.147,23.38689568]
[1770010127526,9.172,98.237,98.149,23.38689568]
[1770010127725,142.6889,98.229,98.149,23.38689568]
[1770010127928,8.62257427,98.23,98.149,23.38689568]
[1770010127929,142.6938,98.225,98.149,23.38689568]
[1770010128122,8.62257427,98.23,98.149,23.38689568]
[1770010128424,30.54,98.25,98.133,142.8263]
[1770010128425,8.62257427,98.25,98.159,23.38243544]
[1770010128727,8.62257427,98.29,98.203,23.38243544]
[1770010128920,142.6232,98.274,98.167,23.38243544]
[1770010129120,9.1686,98.274,98.19,142.7438]
[1770010129527,142.6421,98.261,98.189,23.38243544]
[1770010129722,9.1698,98.261,98.189,23.38243544]
[1770010131027,142.5638,98.315,98.206,23.40335306]
[1770010131326,142.5638,98.315,98.209,23.40335306]
[1770010131527,142.5342,98.336,98.245,23.40335306]
[1770010131925,9.1647,98.316,98.245,23.40335306]
[1770010132125,151.7268,98.316,98.22,23.41833096]
[1770010132329,151.7268,98.316,98.203,142.7245]
[1770010132330,9.1647,98.316,98.228,23.41833096]
[1770010132724,21.45982524,98.35,98.227,142.6895]
[1770010132725,142.5316,98.337,98.257,23.41833096]
[1770010132924,142.5561,98.32,98.228,23.41833096]
[1770010133126,142.5488,98.325,98.231,9.1725]
[1770010133331,151.7127,98.325,98.232,23.41833096]
[1770010133540,9.1639,98.325,98.243,23.41833096]
[1770010133833,558.012,98.339,98.247,23.41833096]
[1770010134028,415.4825,98.339,98.249,23.45320568]
[1770010134234,415.4825,98.339,98.251,23.45320568]
[1770010134422,415.4825,98.339,98.255,32.62350568]
[1770010134622,415.4825,98.339,98.256,23.45320568]
[1770010134827,558.0111,98.339,98.256,23.45320568]
[1770010135331,142.5549,98.321,98.23,23.45320568]
[1770010135528,142.556,98.32,98.23,23.45320568]
[1770010135735,9.1656,98.306,98.23,23.45320568]
[1770010136331,142.586,98.3,98.23,23.45320568]
[1770010136729,142.5714,98.31,98.23,23.45320568]
[1770010136936,9.1654,98.308,98.23,23.45320568]
[1770010137328,9.1654,98.308,98.23,32.62580568]
[1770010137728,151.7397,98.308,98.23,23.45320568]
[1770010138730,9.1665,98.296,98.23,23.45320568]
[1770010140339,9.1649,98.314,98.23,23.45320568]
[1770010140636,21.45982524,98.35,98.258,23.51456003]
[1770010140831,142.5346,98.335,98.24,23.51456003]
[1770010141430,163.97302524,98.35,98.256,23.51456003]
[1770010141735,142.4557,98.39,98.29,23.51456003]
[1770010141939,142.4557,98.39,98.257,142.6462]
[1770010141940,142.485,98.369,98.296,23.51456003]
[1770010142135,142.485,98.369,98.24,142.6713]
[1770010142136,142.4077,98.423,98.314,23.5306337]
[1770010142439,21.45982524,98.44,98.334,23.5306337]
[1770010142630,142.3637,98.453,98.356,23.5306337]
[1770010142934,163.79992524,98.47,98.359,142.4993]
[1770010142935,142.3526,98.461,98.359,142.4993]
[1770010143132,21.45982524,98.47,98.375,166.0058337]
[1770010143442,142.346,98.465,98.381,23.5306337]
[1770010144227,9.1508,98.465,98.381,23.5306337]
[1770010144637,9.1497,98.478,98.393,23.59657146]
[1770010145231,406.2,98.481,98.4,23.59657146]
[1770010145435,142.263,98.523,98.423,23.59657146]
[1770010145436,142.2711,98.517,98.423,23.59657146]
[1770010145634,142.263,98.523,98.432,23.59657146]
[1770010145841,21.45982524,98.53,98.406,23.59657146]
[1770010145842,142.2964,98.5,98.406,23.59657146]
[1770010146038,142.3273,98.478,98.406,23.59657146]
[1770010146237,142.3439,98.467,98.406,23.59657146]
[1770010146436,142.3463,98.465,98.379,23.60266486]
[1770010147133,142.3923,98.433,98.341,23.60266486]
[1770010147433,142.3435,98.467,98.37,23.60266486]
[1770010147634,9.1492,98.483,98.393,23.60636653]
[1770010147834,163.77052524,98.49,98.371,166.08726653]
[1770010147835,142.3392,98.47,98.371,166.08726653]
[1770010148036,142.3392,98.47,98.372,23.60636653]
[1770010148235,142.3253,98.48,98.367,142.4878]
[1770010148236,142.3253,98.48,98.387,142.4578]
[1770010148436,142.3299,98.477,98.39,23.60636653]
[1770010148631,142.3544,98.46,98.362,23.60636653]
[1770010148832,142.3582,98.457,98.362,23.60636653]
[1770010149032,142.355,98.459,98.367,23.60636653]
[1770010149430,9.1514,98.459,98.369,23.60636653]
[1770010149634,142.3771,98.444,98.369,23.60636653]
[1770010150041,142.3906,98.435,98.369,23.60636653]
[1770010150644,142.4052,98.425,98.341,23.61981701]
[1770010150847,142.391,98.434,98.341,23.61981701]
[1770010151039,142.3771,98.444,98.347,23.61981701]
[1770010151240,151.5391,98.438,98.347,23.61981701]
[1770010151546,9.1533,98.438,98.348,23.61981701]
[1770010152037,405.84,98.451,98.364,23.62584724]
[1770010152641,405.84,98.451,98.337,142.53]
[1770010152642,21.45982524,98.49,98.399,23.62584724]
[1770010152839,142.2894,98.505,98.419,23.62584724]
[1770010153244,142.3219,98.482,98.392,23.62584724]
[1770010153438,142.3487,98.464,98.392,23.62584724]
[1770010153642,142.3266,98.479,98.392,23.62584724]
[1770010153847,405.82,98.482,98.396,23.62584724]
[1770010154445,8.5842787,98.51,98.427,23.6229187]
[1770010154942,151.4611,98.489,98.398,23.6229187]
[1770010155138,142.3412,98.469,98.398,23.6229187]
[1770010155341,142.3578,98.457,98.371,23.6229187]
[1770010155648,8.5842787,98.45,98.371,23.6229187]
[1770010155838,30.54,98.466,98.372,142.4802]
[1770010156047,8.5842787,98.47,98.375,23.58187131]
[1770010156244,8.5842787,98.47,98.385,23.58187131]
[1770010157347,9.1506,98.468,98.385,23.58187131]
[1770010157744,142.3545,98.46,98.385,23.58187131]
[1770010157948,9.1512,98.46,98.385,23.58187131]
[1770010158346,8.59019342,98.47,98.385,23.58187131]
[1770010158650,9.1505,98.468,98.385,23.58187131]
[1770010158850,151.4922,98.468,98.385,23.58187131]
[1770010159041,9.1505,98.468,98.385,23.58187131]
[1770010159645,8.59019342,98.47,98.388,23.58826713]
[1770010159948,8.59019342,98.47,98.39,23.58826713]
[1770010160147,8.59019342,98.48,98.39,23.58826713]
[1770010160650,8.59019342,98.48,98.396,23.58413966]
[1770010160845,9.1498,98.476,98.396,23.58413966]
[1770010161549,8.59019342,98.48,98.397,23.58413966]
[1770010162349,8.59019342,98.48,98.411,142.4236]
[1770010162746,8.59019342,98.5,98.412,23.58085181]
[1770010163253,8.59019342,98.5,98.423,23.58085181]
[1770010163553,8.59019342,98.52,98.441,23.58085181]
[1770010163751,405.62,98.547,98.46,9.1512]
[1770010163954,8.59019342,98.52,98.454,23.58085181]
[1770010164851,151.4289,98.51,98.418,23.58517259]
[1770010165154,8.59019342,98.5,98.418,23.58517259]
[1770010165553,30.54,98.499,98.418,23.58517259]
[1770010165851,8.59019342,98.5,98.431,23.59678796]
[1770010166054,30.54,98.517,98.431,23.59678796]
[1770010166348,30.54,98.517,98.433,23.59678796]
[1770010166554,8.59019342,98.52,98.432,142.3923]
[1770010166555,8.59019342,98.52,98.446,23.59678796]
[1770010166853,8.59019342,98.52,98.449,23.59678796]
[1770010167049,8.59019342,98.5,98.417,23.59678796]
[1770010167248,8.59019342,98.48,98.409,9.156]
[1770010167454,8.59019342,98.48,98.41,23.59678796]
[1770010168152,172.8658,98.479,98.383,23.6112162]
[1770010168356,30.54,98.479,98.389,23.6112162]
[1770010168853,8.59019342,98.48,98.405,23.6112162]
[1770010169350,8.59019342,98.48,98.411,23.6112162]
[1770010169546,30.54,98.459,98.387,23.6112162]
[1770010169746,30.54,98.457,98.387,23.6112162]
[1770010169956,8.59019342,98.46,98.387,23.6112162]
[1770010170342,9.1498,98.475,98.391,23.54627502]
[1770010170743,9.1498,98.475,98.391,165.99917502]
[1770010170947,9.151,98.464,98.399,23.54627502]
[1770010171151,39.13019342,98.46,98.375,23.54627502]
[1770010171652,39.13019342,98.46,98.36,142.4978]
[1770010171653,9.1519,98.453,98.377,23.54627502]
[1770010172251,9.1519,98.453,98.38,23.56752892]
[1770010172847,8.59019342,98.48,98.392,23.56752892]
[1770010173047,8.59019342,98.48,98.396,23.56752892]
[1770010173259,142.346,98.465,98.373,23.56752892]
[1770010173554,9.1529,98.443,98.378,23.56752892]
[1770010175752,9.1541,98.43,98.378,23.56752892]
[1770010176157,39.13019342,98.44,98.378,23.56752892]
[1770010176357,30.54,98.45,98.378,23.56752892]
[1770010176854,9.1523,98.449,98.378,23.56752892]
[1770010178358,9.1534,98.437,98.378,23.56752892]
[1770010180057,8.59019342,98.44,98.378,23.56752892]
[1770010180259,8.59019342,98.46,98.381,23.60211973]
[1770010180452,9.1511,98.462,98.39,9.1577]
[1770010180658,9.1511,98.462,98.381,23.60211973]
[1770010180854,142.3626,98.454,98.381,23.60211973]
[1770010181053,9.1522,98.45,98.381,23.60211973]
[1770010182152,8.59019342,98.48,98.393,23.60349249]
[1770010182354,150.91589342,98.48,98.396,9.1572]
[1770010182555,8.59019342,98.46,98.375,23.60349249]
[1770010182756,8.59019342,98.46,98.38,23.60349249]
[1770010182956,405.54,98.499,98.397,23.60349249]
[1770010183150,142.2847,98.508,98.397,23.60349249]
[1770010183151,8.59019342,98.48,98.397,23.60349249]
[1770010183354,9.1496,98.478,98.397,23.60349249]
[1770010183760,142.3337,98.474,98.397,23.60349249]
[1770010183956,9.1507,98.466,98.397,23.60349249]
[1770010184558,9.1507,98.466,98.399,23.58370262]
[1770010184863,9.152,98.452,98.399,23.58370262]
[1770010185066,8.59019342,98.46,98.399,23.58370262]
[1770010185266,9.1516,98.456,98.399,23.58370262]
[1770010186159,8.59019342,98.46,98.337,142.5306]
[1770010186160,9.1527,98.445,98.375,23.55878976]
[1770010187369,9.154,98.431,98.375,23.55878976]
[1770010188158,9.154,98.431,98.323,142.5506]
[1770010188159,9.157,98.398,98.323,23.55699091]
[1770010188356,30.54,98.397,98.323,23.55699091]
[1770010188566,9.1544,98.426,98.338,23.55699091]
[1770010188766,8.59019342,98.42,98.338,23.55699091]
[1770010189163,8.59019342,98.44,98.35,23.55699091]
[1770010189368,8.59019342,98.44,98.355,23.55699091]
[1770010189568,30.54,98.439,98.355,23.55699091]
[1770010189868,9.1522,98.45,98.361,23.55451396]
[1770010190161,9.1522,98.45,98.363,23.55451396]
[1770010190368,9.1522,98.45,98.364,23.55451396]
[1770010190563,8.59019342,98.47,98.387,23.55451396]
[1770010190761,8.59019342,98.49,98.403,23.55451396]
[1770010190963,8.59019342,98.53,98.444,142.3759]
[1770010191264,142.2751,98.515,98.447,23.55451396]
[1770010191465,142.2807,98.511,98.424,23.55451396]
[1770010191670,142.2991,98.498,98.424,23.55451396]
[1770010191866,30.54,98.5,98.424,23.55451396]
[1770010192468,9.1479,98.496,98.424,23.55451396]
[1770010193176,142.2653,98.521,98.408,142.4272]
[1770010193177,8.59019342,98.53,98.447,23.5825437]
[1770010193366,142.2115,98.559,98.463,23.5825437]
[1770010193577,142.2427,98.537,98.463,23.5825437]
[1770010193963,142.2718,98.517,98.44,23.52077352]
[1770010194165,39.13019342,98.52,98.44,23.52077352]
[1770010194360,8.59019342,98.53,98.44,23.52077352]
[1770010194672,8.59019342,98.55,98.469,23.52077352]
[1770010194875,142.2261,98.548,98.469,23.52077352]
[1770010195069,142.2394,98.539,98.469,23.52077352]
[1770010195265,142.2567,98.527,98.469,23.52077352]
[1770010195468,8.59019342,98.53,98.469,23.52077352]
[1770010196463,142.2544,98.529,98.436,23.51662888]
[1770010196667,8.59019342,98.52,98.436,23.51662888]
[1770010197264,8.59019342,98.52,98.422,142.4072]
[1770010197265,8.59019342,98.52,98.44,23.51662888]
[1770010198363,9.1444,98.534,98.442,23.51967021]
[1770010198668,9.1444,98.534,98.433,142.392]
[1770010198669,151.3918,98.534,98.444,23.51967021]
[1770010198864,9.1444,98.534,98.45,23.51967021]
[1770010199866,8.59019342,98.54,98.453,23.52015573]
[1770010200168,8.59019342,98.54,98.456,23.52015573]
[1770010200473,9.1416,98.564,98.481,23.52015573]
[1770010201176,8.59019342,98.54,98.458,23.52015573]
[1770010201575,8.59019342,98.56,98.463,23.52015573]
[1770010201772,8.59019342,98.56,98.482,142.321]
[1770010201969,8.59019342,98.56,98.483,23.52015573]
[1770010202271,9.1431,98.548,98.483,23.52015573]
[1770010202478,142.2966,98.5,98.433,23.51822911]
[1770010202670,142.2966,98.5,98.379,25.04312752]
[1770010202671,9.1503,98.471,98.391,23.51822911]
[1770010203272,142.2861,98.507,98.415,23.51822911]
[1770010203574,8.59019342,98.47,98.377,23.51822911]
[1770010203868,142.3173,98.485,98.391,23.51822911]
[1770010204068,142.3395,98.47,98.398,23.53098611]
[1770010204274,142.3404,98.469,98.398,23.53098611]
[1770010204477,8.59019342,98.47,98.398,23.53098611]
[1770010205370,142.3417,98.468,98.373,23.53098611]
[1770010205572,142.3528,98.461,98.375,23.53098611]
[1770010205777,142.3538,98.46,98.375,23.53098611]
[1770010205976,9.1527,98.445,98.375,23.53098611]
[1770010206273,151.5281,98.445,98.375,23.53098611]
[1770010206869,9.1527,98.445,98.375,23.53098611]
[1770010207177,8.59019342,98.49,98.411,23.53774431]
[1770010207379,142.3216,98.482,98.411,23.53774431]
[1770010207671,150.90079342,98.49,98.411,23.53774431]
[1770010207877,142.2986,98.498,98.411,23.53774431]
[1770010208176,142.3207,98.483,98.411,23.53774431]
[1770010208378,142.3126,98.489,98.411,23.53774431]
[1770010208582,142.3161,98.486,98.411,23.53774431]
[1770010208775,9.1488,98.487,98.411,23.53774431]
[1770010209073,142.3277,98.478,98.411,23.53774431]
[1770010209278,142.3277,98.478,98.35,151.10159342]
[1770010209279,142.3628,98.454,98.381,23.51174245]
[1770010209475,9.1523,98.449,98.381,23.51174245]
[1770010209777,142.3755,98.445,98.381,23.51174245]
[1770010209978,8.59019342,98.45,98.32,142.555]
[1770010209979,142.4093,98.422,98.352,23.51646689]
[1770010210373,9.1561,98.408,98.323,23.51646689]
[1770010210780,405.4,98.425,98.349,23.51646689]
[1770010210975,8.59019342,98.47,98.386,142.4594]
[1770010211180,8.59019342,98.51,98.418,23.51646689]
[1770010211377,8.59019342,98.53,98.441,23.51646689]
[1770010211676,142.3085,98.491,98.409,23.51646689]
[1770010211876,142.3213,98.483,98.409,23.51646689]
[1770010212078,151.4852,98.473,98.409,23.51646689]
[1770010212481,9.151,98.463,98.373,23.54902467]
[1770010212885,9.151,98.463,98.366,142.4888]
[1770010212886,8.59019342,98.47,98.376,23.54902467]
[1770010213183,160.07989342,98.47,98.378,23.54902467]
[1770010213379,8.59019342,98.49,98.387,23.54902467]
[1770010213585,142.3057,98.493,98.409,23.54902467]
[1770010213781,142.3307,98.476,98.409,23.54902467]
[1770010214174,142.3307,98.476,98.35,8.59019342]
[1770010214175,8.59019342,98.5,98.42,23.57537453]
[1770010214373,142.2702,98.518,98.438,23.57537453]
[1770010214578,8.59019342,98.5,98.414,23.57537453]
[1770010214783,8.59019342,98.5,98.402,142.4358]
[1770010214784,9.1477,98.499,98.417,23.57537453]
[1770010214977,142.317,98.486,98.417,23.57537453]
[1770010215183,142.3195,98.484,98.417,23.57537453]
[1770010215382,142.3611,98.455,98.391,23.57537453]
[1770010215681,142.3592,98.456,98.391,23.57537453]
[1770010215884,9.1529,98.442,98.366,23.57537453]
[1770010216089,142.3548,98.459,98.37,23.55105541]
[1770010216286,11.94394404,98.609,98.37,23.55105541]
[1770010216287,9.1542,98.429,98.37,23.55105541]
[1770010216582,8.59019342,98.44,98.37,23.55105541]
[1770010216780,142.3916,98.434,98.37,23.55105541]
[1770010216976,30.54,98.452,98.37,23.55105541]
[1770010217383,8.59019342,98.46,98.37,23.55105541]
[1770010217885,142.3724,98.447,98.37,23.55105541]
[1770010218186,142.352,98.461,98.379,23.55025472]
[1770010218379,142.3575,98.458,98.379,23.55025472]
[1770010218880,9.1539,98.432,98.35,23.55025472]
[1770010219677,9.1548,98.422,98.35,23.55025472]
[1770010219883,142.3852,98.438,98.35,23.55025472]
[1770010220079,30.54,98.446,98.35,23.55025472]
[1770010220284,9.1534,98.437,98.352,23.54260926]
[1770010220678,405.46,98.447,98.363,23.54260926]
[1770010220878,142.3423,98.468,98.376,23.54260926]
[1770010221383,9.1517,98.456,98.376,23.54260926]
[1770010221978,9.1503,98.47,98.388,23.53732983]
[1770010222176,142.3294,98.477,98.388,23.53732983]
[1770010222377,4.0,98.558,98.388,23.53732983]
[1770010222378,142.3667,98.451,98.388,23.53732983]
[1770010222578,8.59263013,98.44,98.359,23.53732983]
[1770010222778,405.5,98.458,98.381,23.53732983]
[1770010222979,8.59263013,98.41,98.322,23.53732983]
[1770010223593,405.5,98.429,98.352,142.5093]
[1770010223786,8.59263013,98.43,98.356,23.53732983]
[1770010224286,8.59263013,98.45,98.356,23.53732983]
[1770010224483,142.3864,98.438,98.356,23.53732983]
[1770010224679,9.1542,98.428,98.356,23.53732983]
[1770010224883,142.412,98.42,98.356,23.53732983]
[1770010225287,142.3983,98.429,98.356,23.53732983]
[1770010226386,151.5525,98.429,98.356,23.53732983]
[1770010226588,151.5525,98.429,98.333,23.48587368]
[1770010226589,8.59263013,98.41,98.333,23.48587368]
[1770010226787,142.4285,98.408,98.333,23.48587368]
[1770010226990,9.1571,98.397,98.333,23.48587368]
[1770010227679,9.1571,98.397,98.294,142.5929]
[1770010227680,8.59263013,98.41,98.336,142.5317]
[1770010227886,405.54,98.418,98.342,23.48587368]
[1770010228291,8.59263013,98.43,98.349,23.50734931]
[1770010228492,142.3828,98.44,98.349,23.50734931]
[1770010228695,30.54,98.485,98.379,23.50734931]
[1770010228888,142.3597,98.456,98.379,23.50734931]
[1770010229489,8.59263013,98.46,98.379,23.50734931]
[1770010229690,142.3653,98.452,98.379,23.50734931]
[1770010229988,142.3897,98.435,98.349,23.50734931]
[1770010230191,8.59263013,98.42,98.349,23.50734931]
[1770010230789,8.59263013,98.44,98.353,23.50732413]
[1770010231102,142.3566,98.458,98.363,23.50732413]
[1770010231287,142.3611,98.455,98.363,23.50732413]
[1770010231687,8.59263013,98.46,98.354,142.5061]
[1770010231688,8.59263013,98.46,98.382,23.50732413]
[1770010231883,142.3321,98.475,98.382,23.50732413]
[1770010232083,142.333,98.474,98.382,23.50732413]
[1770010232294,9.1505,98.468,98.384,23.53826724]
[1770010232494,8.59263013,98.48,98.391,23.53826724]
[1770010232790,8.59263013,98.51,98.435,23.53826724]
[1770010232985,8.59263013,98.53,98.455,165.89786724]
[1770010233186,8.59263013,98.55,98.467,23.53826724]
[1770010233387,159.96013013,98.55,98.474,23.53826724]
[1770010233583,159.96013013,98.55,98.425,142.4027]
[1770010233584,142.245,98.535,98.449,23.53826724]
[1770010233788,142.2541,98.529,98.449,23.53826724]
[1770010234191,8.59263013,98.51,98.418,23.55054851]
[1770010234390,142.3033,98.495,98.423,23.55054851]
[1770010234590,8.59263013,98.49,98.423,23.55054851]
[1770010235192,142.3158,98.486,98.423,23.55054851]
[1770010235396,8.59263013,98.49,98.379,284.9388]
[1770010235397,142.3206,98.483,98.398,23.55054851]
[1770010235597,30.54,98.469,98.398,23.55054851]
[1770010236288,8.59263013,98.47,98.398,23.55054851]
[1770010237193,142.3124,98.489,98.405,23.52752743]
[1770010237400,8.59263013,98.49,98.41,23.52752743]
[1770010237894,8.59263013,98.49,98.415,9.1554]
[1770010238095,30.54,98.499,98.42,23.52207794]
[1770010238297,30.54,98.499,98.421,23.52207794]
[1770010238500,172.8662,98.479,98.395,23.52207794]
[1770010238800,172.8662,98.479,98.389,142.4558]
[1770010238801,30.54,98.489,98.403,23.52207794]
[1770010238997,30.54,98.489,98.41,23.52207794]
[1770010239198,8.59263013,98.49,98.413,23.52207794]
[1770010239401,8.59263013,98.49,98.417,23.52207794]
[1770010240200,30.54,98.5,98.417,23.52207794]
[1770010240601,9.1471,98.505,98.427,23.40857806]
[1770010240801,8.59263013,98.51,98.427,23.40857806]
[1770010241000,9.1467,98.509,98.428,9.1541]
[1770010241201,9.1467,98.509,98.428,32.56267806]
[1770010241699,9.1467,98.509,98.429,23.40857806]
[1770010242305,8.59263013,98.51,98.431,23.39035092]
[1770010243005,30.54,98.522,98.437,23.39035092]
[1770010243305,9.1467,98.509,98.437,23.39035092]
[1770010243901,8.59263013,98.52,98.442,23.38446593]
[1770010244510,8.59263013,98.52,98.443,23.38446593]
[1770010244706,8.59263013,98.54,98.454,23.38446593]
[1770010244903,8.59263013,98.54,98.469,23.38446593]
[1770010245107,39.6833,98.546,98.469,23.38446593]
[1770010245307,8.59263013,98.54,98.469,23.38446593]
[1770010245510,8.59263013,98.56,98.472,23.38446593]
[1770010245711,8.59263013,98.56,98.454,142.3614]
[1770010245712,142.2106,98.559,98.48,23.38446593]
[1770010246509,8.59263013,98.56,98.48,23.38446593]
[1770010246818,8.59263013,98.56,98.486,23.38117673]
[1770010247019,8.59263013,98.59,98.505,23.38115558]
[1770010247207,8.59263013,98.59,98.507,23.38115558]
[1770010247410,303.33712823,98.568,98.524,151.4059]
[1770010247616,209.75214366,98.568,98.531,142.25]
[1770010247813,209.75214366,98.568,98.522,23.38115558]